[Event "3rd Matrix Cup 2024"]
[Site "New Delhi"]
[Date "2024.04.08"]
[Round "6.5"]
[White "Akshat Negi"]
[Black "Kishan Kumar"]
[Result "1/2-1/2"]
[ECO "B51"]
[WhiteElo "1790"]
[BlackElo "1933"]
[Annotator "RC"]
[PlyCount "130"]
[EventDate "2024.04.07"]
[EventType "swiss"]
[EventCountry "IND"]
[SourceTitle "playchess.com"]
[Source "ChessBase"]
[SourceQuality "1"]
[TimeControl "5400+30"]

1. e4 {[%emt 0:01:08]} c5 {[%emt 0:00:06]} 2. Nf3 {[%emt 0:00:04]} d6 {[%emt 0:00:04]} 3. Bb5+ {[%emt 0:00:03]} Nd7 {[%emt 0:00:32]} 4. d4 {[%emt 0:00:16]} a6 {[%emt 0:01:04]} 5. Bxd7+ {[%emt 0:01:52]} Bxd7 {[%emt 0:02:26]} 6. O-O {[%emt 0:00:42]} cxd4 {[%emt 0:01:08]} 7. Qxd4 {[%emt 0:00:03]} Nf6 {[%emt 0:00:53]} 8. Bg5 {[%emt 1:30:22]} e5 {[%emt 0:01:48]} 9. Qd3 {[%emt 0:00:00]} h6 {[%emt 0:17:10]} 10. Bxf6 {[%emt 0:00:00]} Qxf6 {[%emt 0:00:30]} 11. c4 {[%emt 0:00:00]} Qd8 {[%emt 0:08:46]} 12. Nc3 {[%emt 0:00:00]} Be6 {[%emt 0:01:12]} 13. Nd5 {[%emt 0:00:00]} Be7 {[%emt 0:04:36]} 14. Rfd1 {[%emt 0:00:00]} Rc8 {[%emt 0:04:04]} 15. Rac1 {[%emt 0:00:00]} O-O {[%emt 0:04:46]} 16. h3 {[%emt 0:00:00]} Re8 {[%emt 0:06:17]} 17. b3 {[%emt 0:00:00]} Bf8 {[%emt 0:01:19]} 18. Nh2 {[%emt 0:00:00]} Qg5 {[%emt 0:04:23]} 19. Nf1 {[%emt 0:00:00]} b5 {[%emt 0:01:17]} 20. Nd2 {[%emt 0:00:00]} bxc4 {[%emt 0:02:44]} 21. Rxc4 {[%emt 0:00:00]} f5 {[%emt 0:07:41]} 22. exf5 {[%emt 0:00:00]} Bxf5 {[%emt 0:01:25]} 23. Qe3 {[%emt 0:00:00]} Qxe3 {[%emt 0:03:57]} 24. Nxe3 {[%emt 0:00:00]} Bd3 {[%emt 0:00:55]} 25. Rxc8 {[%emt 0:00:00]} Rxc8 {[%emt 0:00:03]} 26. Ndc4 {[%emt 0:00:00]} e4 {[%emt 0:01:22]} 27. Nb2 {[%emt 0:00:00]} Bb5 {[%emt 0:03:06]} 28. Nbc4 {[%emt 0:00:00]} Rd8 {[%emt 0:01:32]} 29. a4 {[%emt 0:00:00]} Bc6 {[%emt 0:01:26]} 30. Nd5 {[%emt 0:00:00]} Rb8 {[%emt 0:01:08]} 31. Na5 {[%emt 0:00:00]} Be8 {[%emt 0:00:38]} 32. Kf1 {[%emt 0:00:00]} Bf7 {[%emt 0:00:21]} 33. Ke2 {[%emt 0:00:00]} Rc8 {[%emt 0:00:12]} 34. Nc4 {[%emt 0:01:58]} Rc5 {[%emt 0:01:27]} 35. Ncb6 {[%emt 0:00:13]} Rc2+ {[%emt 0:01:53]} 36. Rd2 {[%emt 0:00:20]} Rc1 {[%emt 0:00:22]} 37. b4 {[%emt 0:04:43]} Be8 {[%emt 0:03:40]} 38. Ke3 {[%emt 0:01:06]} Re1+ {[%emt 0:00:57]} 39. Re2 {[%emt 0:00:45]} Ra1 {[%emt 0:00:16]} 40. Kxe4 {[%emt 0:05:18]} Bxa4 {[%emt 0:00:19]} 41. Nxa4 {[%emt 0:00:02]} Rxa4 {[%emt 0:00:02]} 42. Kd3 {[%emt 0:00:11]} Kf7 {[%emt 0:01:29]} 43. Kc4 {[%emt 0:00:01]} Ra1 {[%emt 0:01:06]} 44. Kb3 {[%emt 0:00:13]} Rd1 {[%emt 0:01:19]} 45. Nc7 {[%emt 0:01:23]} d5 {[%emt 0:04:39]} 46. Nxa6 {[%emt 0:00:06]} d4 {[%emt 0:00:16]} 47. Kc2 {[%emt 0:01:21]} Ra1 {[%emt 0:00:25]} 48. Nc5 {[%emt 0:00:07]} Bxc5 {[%emt 0:01:01]} 49. bxc5 {[%emt 0:00:03]} Ra5 {[%emt 0:00:51]} 50. Re5 {[%emt 0:02:04]} Ra2+ {[%emt 0:00:20]} 51. Kd3 {[%emt 0:00:02]} Rxf2 {[%emt 0:00:44]} 52. Kxd4 {[%emt 0:00:39]} Rxg2 {[%emt 0:00:39]} 53. Re3 {[%emt 0:00:38]} Rc2 {[%emt 0:00:58]} 54. Kd5 {[%emt 0:00:15]} g5 {[%emt 0:01:06]} 55. Kd6 {[%emt 0:00:07]} h5 {[%emt 0:00:49]} 56. Rd3 {[%emt 0:00:43]} Kf6 {[%emt 0:00:42]} 57. Rd5 {[%emt 0:00:17]} g4 {[%emt 0:02:14]} 58. hxg4 {[%emt 0:01:39]} hxg4 {[%emt 0:00:04]} 59. c6 {[%emt 0:00:04]} g3 {[%emt 0:00:39]} 60. c7 {[%emt 0:00:01]} g2 {[%emt 0:00:46]} 61. Rd1 {[%emt 0:00:16]} Kf5 {[%emt 0:01:29]} 62. Rg1 {[%emt 0:00:02]} Kf6 {[%emt 0:00:13]} 63. Kd7 {[%emt 0:00:23]} Rd2+ {[%emt 0:00:30]} 64. Kc8 {[%emt 0:00:31]} Kf5 {[%emt 0:00:18]} 65. Kb8 {[%emt 0:00:37]} Rb2+ {[%emt 0:00:06]} 1/2-1/2

[Event "3rd Matrix Cup 2024"]
[Site "New Delhi"]
[Date "2024.04.08"]
[Round "6.6"]
[White "Negi, Virender Singh"]
[Black "Saparya Ghosh"]
[Result "1/2-1/2"]
[ECO "A13"]
[WhiteElo "1920"]
[BlackElo "1759"]
[Annotator "RC"]
[PlyCount "47"]
[EventDate "2024.04.07"]
[EventType "swiss"]
[EventCountry "IND"]
[SourceTitle "playchess.com"]
[Source "ChessBase"]
[SourceQuality "1"]
[TimeControl "5400+30"]

1. Nf3 {[%emt 0:00:06]} Nf6 {[%emt 0:03:05]} 2. c4 {[%emt 0:00:16]} e6 {[%emt 0:00:06]} 3. g3 {[%emt 0:00:12]} d5 {[%emt 0:00:22]} 4. Bg2 {[%emt 0:00:07]} d4 {[%emt 0:00:06]} 5. e3 {[%emt 0:00:52]} Nc6 {[%emt 0:00:09]} 6. O-O {[%emt 0:00:17]} Bc5 {[%emt 0:09:19]} 7. exd4 {[%emt 0:12:06]} Nxd4 {[%emt 0:00:23]} 8. Nc3 {[%emt 0:00:11]} O-O {[%emt 0:00:42]} 9. d3 {[%emt 0:13:08]} Nd7 {[%emt 0:08:41]} 10. Nxd4 {[%emt 0:05:42]} Bxd4 {[%emt 0:00:05]} 11. Ne2 {[%emt 0:00:04]} Bf6 {[%emt 0:01:46]} 12. d4 {[%emt 0:01:38]} c6 {[%emt 0:08:39]} 13. Be3 {[%emt 0:01:13]} Nb6 {[%emt 0:01:25]} 14. Qc2 {[%emt 0:00:49]} e5 {[%emt 0:01:00]} 15. Rad1 {[%emt 0:02:20]} Qc7 {[%emt 0:04:50]} 16. h3 {[%emt 0:05:00]} Be6 {[%emt 0:01:00]} 17. b3 {[%emt 0:00:09]} g6 {[%emt 0:04:57]} 18. dxe5 {[%emt 0:02:09]} Bxe5 {[%emt 0:00:29]} 19. Nd4 {[%emt 0:00:46]} Rfe8 {[%emt 0:03:19]} 20. Nxe6 {[%emt 0:04:18]} Rxe6 {[%emt 0:00:40]} 21. Bd4 {[%emt 0:00:12]} Rae8 {[%emt 0:07:27]} 22. Bxe5 {[%emt 0:02:06]} Rxe5 {[%emt 0:00:57]} 23. Rd2 {[%emt 0:00:19]} Nd7 {[%emt 0:03:37]} 24. Rfd1 {[%emt 0:04:31]} 1/2-1/2

[Event "3rd Matrix Cup 2024"]
[Site "New Delhi"]
[Date "2024.04.08"]
[Round "6.7"]
[White "Lakshmi Charan Naidu G"]
[Black "Singh, Arvinder Preet"]
[Result "1/2-1/2"]
[ECO "A80"]
[WhiteElo "1753"]
[BlackElo "2064"]
[Annotator "RC"]
[PlyCount "176"]
[EventDate "2024.04.07"]
[EventType "swiss"]
[EventCountry "IND"]
[SourceTitle "playchess.com"]
[Source "ChessBase"]
[SourceQuality "1"]
[TimeControl "5400+30"]

1. d4 {[%emt 0:03:12]} f5 {[%emt 0:00:06]} 2. Nc3 {[%emt 0:00:04]} e6 {[%emt 0:01:49]} 3. e4 {[%emt 0:00:19]} Bb4 {[%emt 0:02:19]} 4. exf5 {[%emt 0:01:12]} exf5 {[%emt 0:00:20]} 5. Nf3 {[%emt 0:02:05]} Nf6 {[%emt 0:00:27]} 6. Bg5 {[%emt 0:07:06]} O-O {[%emt 0:00:13]} 7. Be2 {[%emt 0:00:35]} Bxc3+ {[%emt 0:11:02]} 8. bxc3 {[%emt 0:00:08]} h6 {[%emt 0:00:07]} 9. Bxf6 {[%emt 0:03:57]} Qxf6 {[%emt 0:00:36]} 10. Bc4+ {[%emt 0:00:24]} Kh8 {[%emt 0:00:49]} 11. O-O {[%emt 0:00:12]} d6 {[%emt 0:04:31]} 12. Re1 {[%emt 0:00:46]} Nc6 {[%emt 0:05:14]} 13. Rb1 {[%emt 0:00:51]} Na5 {[%emt 0:09:45]} 14. Bd5 {[%emt 0:07:28]} c6 {[%emt 0:00:23]} 15. Bb3 {[%emt 0:00:05]} f4 {[%emt 0:10:52]} 16. Qe2 {[%emt 0:06:42]} Bg4 {[%emt 0:02:12]} 17. Qe7 {[%emt 0:00:07]} Bxf3 {[%emt 0:00:44]} 18. Qxf6 {[%emt 0:00:07]} Rxf6 {[%emt 0:00:03]} 19. gxf3 {[%emt 0:00:06]} d5 {[%emt 0:00:12]} 20. Re5 {[%emt 0:01:30]} b5 {[%emt 0:28:46]} 21. Rbe1 {[%emt 0:01:23]} Rf7 {[%emt 0:02:45]} 22. Re8+ {[%emt 0:03:59]} Rxe8 {[%emt 0:00:23]} 23. Rxe8+ {[%emt 0:00:04]} Kh7 {[%emt 0:00:03]} 24. a4 {[%emt 0:00:04]} bxa4 {[%emt 0:09:59]} 25. Bxa4 {[%emt 0:00:30]} Rc7 {[%emt 0:00:01]} 26. Re6 {[%emt 0:06:08]} Kg8 {[%emt 0:00:19]} 27. h4 {[%emt 0:01:56]} Kf7 {[%emt 0:00:09]} 28. Rd6 {[%emt 0:00:11]} Ke7 {[%emt 0:01:16]} 29. Rg6 {[%emt 0:00:04]} Kd8 {[%emt 0:00:21]} 30. Kg2 {[%emt 0:02:00]} Kc8 {[%emt 0:00:19]} 31. Kh3 {[%emt 0:00:06]} h5 {[%emt 0:04:10]} 32. Rg5 {[%emt 0:01:28]} Nc4 {[%emt 0:00:14]} 33. Bb3 {[%emt 0:00:03]} Nb6 {[%emt 0:03:45]} 34. Ba2 {[%emt 0:00:04]} Re7 {[%emt 0:01:05]} 35. c4 {[%emt 0:01:14]} dxc4 {[%emt 0:00:14]} 36. Rc5 {[%emt 0:00:05]} Rd7 {[%emt 0:01:33]} 37. c3 {[%emt 0:00:30]} Rd5 {[%emt 0:00:59]} 38. Rxc6+ {[%emt 0:01:09]} Kb7 {[%emt 0:00:01]} 39. Rg6 {[%emt 0:00:08]} Rd7 {[%emt 0:01:14]} 40. Rg5 {[%emt 0:00:14]} Rc7 {[%emt 0:00:15]} 41. d5 {[%emt 0:03:56]} Rd7 {[%emt 0:00:31]} 42. Rxh5 {[%emt 0:00:44]} a5 {[%emt 0:00:30]} 43. d6 {[%emt 0:01:14]} Ka6 {[%emt 0:00:18]} 44. Rc5 {[%emt 0:00:05]} Rxd6 {[%emt 0:00:11]} 45. Bxc4+ {[%emt 0:00:34]} Nxc4 {[%emt 0:00:01]} 46. Rxc4 {[%emt 0:00:06]} Kb5 {[%emt 0:00:15]} 47. Rxf4 {[%emt 0:00:06]} a4 {[%emt 0:01:45]} 48. Rf5+ {[%emt 0:00:39]} Kc4 {[%emt 0:00:41]} 49. Ra5 {[%emt 0:00:15]} Kb3 {[%emt 0:00:08]} 50. Ra7 {[%emt 0:13:42]} Rg6 {[%emt 0:00:38]} 51. h5 {[%emt 0:00:57]} Rg1 {[%emt 0:00:15]} 52. Kh4 {[%emt 0:08:36]} a3 {[%emt 0:00:17]} 53. Rb7+ {[%emt 0:00:04]} Kxc3 {[%emt 0:00:33]} 54. Ra7 {[%emt 0:00:05]} Kb2 {[%emt 0:00:15]} 55. Rb7+ {[%emt 0:00:07]} Kc3 {[%emt 0:01:01]} 56. Ra7 {[%emt 0:00:04]} Kb2 {[%emt 0:00:24]} 57. Rb7+ {[%emt 0:00:45]} Ka1 {[%emt 0:00:00]} 58. f4 {[%emt 0:00:00]} a2 {[%emt 0:00:00]} 59. f5 {[%emt 0:00:00]} Rb1 {[%emt 0:00:00]} 60. Ra7 {[%emt 0:01:01]} Kb2 {[%emt 0:00:00]} 61. h6 {[%emt 0:00:50]} Rh1+ {[%emt 0:03:02]} 62. Kg5 {[%emt 0:00:10]} gxh6+ {[%emt 0:00:21]} 63. Kg6 {[%emt 0:00:18]} a1=Q {[%emt 0:00:44]} 64. Rxa1 {[%emt 0:00:04]} Kxa1 {[%emt 0:00:14]} 65. f6 {[%emt 0:00:04]} Rh4 {[%emt 0:00:13]} 66. Kf5 {[%emt 0:00:26]} Ra4 {[%emt 0:00:27]} 67. f7 {[%emt 0:01:52]} Ra8 {[%emt 0:00:45]} 68. Kg6 {[%emt 0:00:28]} Ra6+ {[%emt 0:00:50]} 69. Kf5 {[%emt 0:00:38]} Ra8 {[%emt 0:00:32]} 70. Kg6 {[%emt 0:00:05]} Rf8 {[%emt 0:00:28]} 71. Kg7 {[%emt 0:00:04]} Rxf7+ {[%emt 0:00:18]} 72. Kxf7 {[%emt 0:00:05]} h5 {[%emt 0:00:01]} 73. f4 {[%emt 0:00:03]} h4 {[%emt 0:00:02]} 74. f5 {[%emt 0:00:04]} h3 {[%emt 0:00:04]} 75. f6 {[%emt 0:00:06]} h2 {[%emt 0:00:24]} 76. Kg8 {[%emt 0:00:04]} h1=Q {[%emt 0:00:20]} 77. f7 {[%emt 0:00:01]} Qg2+ {[%emt 0:00:17]} 78. Kh7 {[%emt 0:00:06]} Qh3+ {[%emt 0:00:15]} 79. Kg7 {[%emt 0:00:04]} Qg4+ {[%emt 0:00:19]} 80. Kh7 {[%emt 0:00:03]} Qh5+ {[%emt 0:00:06]} 81. Kg8 {[%emt 0:00:04]} Qg6+ {[%emt 0:00:10]} 82. Kh8 {[%emt 0:00:03]} Qf6+ {[%emt 0:00:26]} 83. Kg8 {[%emt 0:00:04]} Qe6 {[%emt 0:00:06]} 84. Kg7 {[%emt 0:00:03]} Qe7 {[%emt 0:00:05]} 85. Kg8 {[%emt 0:00:04]} Qg5+ {[%emt 0:00:14]} 86. Kh7 {[%emt 0:00:05]} Qf6 {[%emt 0:00:04]} 87. Kg8 {[%emt 0:00:02]} Qg6+ {[%emt 0:00:03]} 88. Kh8 {[%emt 0:00:04]} Qxf7 {[%emt 0:00:07]} 1/2-1/2

[Event "3rd Matrix Cup 2024"]
[Site "New Delhi"]
[Date "2024.04.08"]
[Round "6.8"]
[White "Aarit Kapil"]
[Black "Daksh Goyal"]
[Result "1-0"]
[ECO "C42"]
[WhiteElo "1741"]
[BlackElo "1916"]
[Annotator "RC"]
[PlyCount "117"]
[EventDate "2024.04.07"]
[EventType "swiss"]
[EventCountry "IND"]
[SourceTitle "playchess.com"]
[Source "ChessBase"]
[SourceQuality "1"]
[TimeControl "5400+30"]

1. e4 {[%emt 0:00:07]} e5 {[%emt 0:00:02]} 2. Nf3 {[%emt 0:00:01]} Nf6 {[%emt 0:00:03]} 3. Nxe5 {[%emt 0:00:02]} d6 {[%emt 0:00:02]} 4. Nf3 {[%emt 0:00:01]} Nxe4 {[%emt 0:00:02]} 5. Nc3 {[%emt 0:00:01]} Nxc3 {[%emt 0:00:31]} 6. dxc3 {[%emt 0:00:02]} Be7 {[%emt 0:00:09]} 7. Bd3 {[%emt 0:00:10]} c6 {[%emt 0:00:27]} 8. O-O {[%emt 0:00:50]} O-O {[%emt 0:00:38]} 9. h3 {[%emt 0:00:19]} Nd7 {[%emt 0:03:20]} 10. Re1 {[%emt 0:00:42]} Nf6 {[%emt 0:05:44]} 11. Bf4 {[%emt 0:00:13]} Re8 {[%emt 0:03:22]} 12. Qd2 {[%emt 0:00:11]} Bd7 {[%emt 0:04:27]} 13. Rad1 {[%emt 0:00:29]} Qb6 {[%emt 0:07:21]} 14. c4 {[%emt 0:16:46]} Qxb2 {[%emt 0:18:56]} 15. Rb1 {[%emt 0:00:07]} Qa3 {[%emt 0:00:02]} 16. Rxb7 {[%emt 0:00:36]} Qa6 {[%emt 0:02:12]} 17. Rbb1 {[%emt 0:02:08]} c5 {[%emt 0:03:30]} 18. Qc3 {[%emt 0:01:49]} Bc6 {[%emt 0:08:24]} 19. Re3 {[%emt 0:08:18]} Nh5 {[%emt 0:07:49]} 20. Bg5 {[%emt 0:05:08]} Bf6 {[%emt 0:03:59]} 21. Bxf6 {[%emt 0:00:54]} Rxe3 {[%emt 0:03:49]} 22. fxe3 {[%emt 0:00:07]} Nxf6 {[%emt 0:01:17]} 23. Rf1 {[%emt 0:00:40]} Re8 {[%emt 0:02:01]} 24. Ng5 {[%emt 0:04:04]} Re5 {[%emt 0:04:07]} 25. Rxf6 {[%emt 0:04:44]} gxf6 {[%emt 0:03:44]} 26. Nxh7 {[%emt 0:00:08]} Kg7 {[%emt 0:05:49]} 27. Qe1 {[%emt 0:01:12]} Be4 {[%emt 0:01:41]} 28. Qh4 {[%emt 0:03:21]} Bxh7 {[%emt 0:00:30]} 29. Qxh7+ {[%emt 0:01:22]} Kf8 {[%emt 0:00:02]} 30. h4 {[%emt 0:07:49]} Qa5 {[%emt 0:04:25]} 31. Qh6+ {[%emt 0:03:00]} Ke7 {[%emt 0:00:02]} 32. e4 {[%emt 0:00:15]} Qe1+ {[%emt 0:02:17]} 33. Kh2 {[%emt 0:00:01]} Qd1 {[%emt 0:00:21]} 34. g3 {[%emt 0:00:23]} Qh5 {[%emt 0:00:57]} 35. Qd2 {[%emt 0:00:45]} Qh8 {[%emt 0:02:53]} 36. Qa5 {[%emt 0:00:22]} Qb8 {[%emt 0:00:05]} 37. Kg2 {[%emt 0:02:43]} Qb6 {[%emt 0:04:00]} 38. Qa4 {[%emt 0:01:16]} a5 {[%emt 0:00:00]} 39. Kh3 {[%emt 0:00:38]} Kd8 {[%emt 0:00:00]} 40. Kg2 {[%emt 0:01:19]} Kc7 {[%emt 0:00:00]} 41. Qb5 {[%emt 0:04:13]} Qxb5 {[%emt 0:00:00]} 42. cxb5 {[%emt 0:00:01]} f5 {[%emt 0:00:28]} 43. exf5 {[%emt 0:00:56]} d5 {[%emt 0:00:01]} 44. g4 {[%emt 0:00:15]} c4 {[%emt 0:00:41]} 45. Bf1 {[%emt 0:00:08]} a4 {[%emt 0:02:07]} 46. f6 {[%emt 0:06:31]} Kb6 {[%emt 0:00:19]} 47. g5 {[%emt 0:00:33]} Kxb5 {[%emt 0:00:17]} 48. Kg3 {[%emt 0:00:11]} Kc6 {[%emt 0:00:35]} 49. Kf4 {[%emt 0:02:10]} Re4+ {[%emt 0:00:25]} 50. Kg3 {[%emt 0:00:08]} Kd7 {[%emt 0:00:49]} 51. h5 {[%emt 0:00:15]} Re8 {[%emt 0:00:38]} 52. Kf4 {[%emt 0:02:22]} Re4+ {[%emt 0:00:31]} 53. Kg3 {[%emt 0:00:06]} Re8 {[%emt 0:00:37]} 54. Kf4 {[%emt 0:00:07]} Re1 {[%emt 0:00:17]} 55. Bh3+ {[%emt 0:00:40]} Ke8 {[%emt 0:00:15]} 56. h6 {[%emt 0:00:43]} Kd8 {[%emt 0:00:12]} 57. g6 {[%emt 0:01:19]} fxg6 {[%emt 0:00:02]} 58. f7 {[%emt 0:00:07]} Ke7 {[%emt 0:01:44]} 59. h7 {[%emt 0:00:01]} 1-0

[Event "3rd Matrix Cup 2024"]
[Site "New Delhi"]
[Date "2024.04.09"]
[Round "7.1"]
[White "Aronyak Ghosh"]
[Black "Neelash Saha"]
[Result "1/2-1/2"]
[ECO "C67"]
[WhiteElo "2517"]
[BlackElo "2464"]
[Annotator "TA"]
[PlyCount "29"]
[EventDate "2024.04.07"]
[EventType "swiss"]
[EventCountry "IND"]
[SourceTitle "playchess.com"]
[Source "ChessBase"]
[SourceQuality "1"]
[TimeControl "5400+30"]

{[%evp 24,29,0,0,0,0,0,-8]} 1. e4 {[%emt 0:04:28]} e5 {[%emt 0:00:07]} 2. Nf3 {[%emt 0:00:03]} Nc6 {[%emt 0:00:04]} 3. Bb5 {[%emt 0:00:04]} Nf6 {[%emt 0:00:06]} 4. O-O {[%emt 0:00:04]} Nxe4 {[%emt 0:00:11]} 5. d4 {[%emt 0:00:07][%cal Bd2d4,Bd4e5][%mdl 32]} Nd6 {[%emt 0:00:03]} 6. dxe5 {[%emt 0:00:04]} Nxb5 {[%emt 0:00:04]} 7. a4 {[%emt 0:00:04]} Nbd4 {[%emt 0:00:03]} 8. Nxd4 {[%emt 0:00:03]} Nxd4 {[%emt 0:00:04]} 9. Qxd4 {[%emt 0:00:05]} d5 {[%emt 0:00:03]} 10. exd6 {[%emt 0:00:05]} Qxd6 {[%emt 0:00:03]} 11. Qe4+ {[%emt 0:00:07]} Qe6 {[%emt 0:00:02]} 12. Qd4 {[%emt 0:00:04]} Qd6 {[%emt 0:00:02]} 13. Qe4+ {[%emt 0:00:04] The position is equal.} Qe6 {[%emt 0:00:03]} 14. Qd4 {[%emt 0:00:05]} Qd6 {[%emt 0:00:03]} 15. Qd1 {[%emt 0:00:39] A rather calm draw.   Weighted Error Value: White=0.00 (flawless) /Black=0.00 (flawless) .  OK:         	White=1     	Black=1} 1/2-1/2

[Event "3rd Matrix Cup 2024"]
[Site "New Delhi"]
[Date "2024.04.09"]
[Round "7.2"]
[White "Kumar, Gaurav"]
[Black "Ram Prakash, R."]
[Result "1-0"]
[ECO "A15"]
[WhiteElo "2083"]
[BlackElo "2191"]
[Annotator "RC"]
[PlyCount "59"]
[EventDate "2024.04.07"]
[EventType "swiss"]
[EventCountry "IND"]
[SourceTitle "playchess.com"]
[Source "ChessBase"]
[SourceQuality "1"]
[TimeControl "5400+30"]

1. Nf3 {[%emt 0:00:59]} Nf6 {[%emt 0:01:02]} 2. c4 {[%emt 0:03:54]} g6 {[%emt 0:00:31]} 3. b4 {[%emt 0:00:30]} Bg7 {[%emt 0:02:16]} 4. Bb2 {[%emt 0:00:17]} O-O {[%emt 0:00:10]} 5. g3 {[%emt 0:00:15]} c6 {[%emt 1:29:01]} 6. Bg2 {[%emt 0:00:51]} d5 {[%emt 0:00:00]} 7. cxd5 {[%emt 0:00:31]} Nxd5 {[%emt 0:00:00]} 8. Bxg7 {[%emt 0:07:56]} Kxg7 {[%emt 0:00:00]} 9. a3 {[%emt 0:01:33]} a5 {[%emt 0:00:00]} 10. bxa5 {[%emt 0:00:40]} Rxa5 {[%emt 0:00:00]} 11. O-O {[%emt 0:01:18]} Qb6 {[%emt 0:00:00]} 12. Qc2 {[%emt 0:17:26]} Rc5 {[%emt 0:00:00]} 13. Qa4 {[%emt 0:06:29]} e5 {[%emt 0:00:00]} 14. Nxe5 {[%emt 0:02:17]} Ra5 {[%emt 0:00:00]} 15. Qh4 {[%emt 0:04:35]} Qb3 {[%emt 0:00:00]} 16. Nd3 {[%emt 0:05:27]} Re8 {[%emt 0:00:00]} 17. Qd4+ {[%emt 0:01:55]} f6 {[%emt 0:00:00]} 18. e4 {[%emt 0:01:10]} Nc7 {[%emt 0:00:00]} 19. Nc3 {[%emt 0:10:35]} Rh5 {[%emt 0:00:00]} 20. Bf3 {[%emt 0:09:45]} Rh6 {[%emt 0:00:00]} 21. e5 {[%emt 0:03:15]} fxe5 {[%emt 0:00:00]} 22. Nxe5 {[%emt 0:02:06]} Ne6 {[%emt 0:00:00]} 23. Qe3 {[%emt 0:00:51]} Nf8 {[%emt 0:00:00]} 24. Qf4 {[%emt 0:02:27]} Qg8 {[%emt 0:00:00]} 25. Ne4 {[%emt 0:00:12]} Qe6 {[%emt 0:00:00]} 26. Ng4 {[%emt 0:00:49]} Rh5 {[%emt 0:00:00]} 27. Ngf6 {[%emt 0:00:58]} Rf5 {[%emt 0:00:00]} 28. Nxe8+ {[%emt 0:00:27]} Qxe8 {[%emt 0:00:00]} 29. Qxb8 {[%emt 0:02:23]} Nd7 {[%emt 0:00:00]} 30. Nd6 {[%emt 0:00:56]} 1-0

[Event "3rd Matrix Cup 2024"]
[Site "New Delhi"]
[Date "2024.04.09"]
[Round "7.3"]
[White "Kishan Kumar"]
[Black "Kolla Bhaavan"]
[Result "1-0"]
[ECO "D78"]
[WhiteElo "1933"]
[BlackElo "1825"]
[Annotator "RC"]
[PlyCount "101"]
[EventDate "2024.04.07"]
[EventType "swiss"]
[EventCountry "IND"]
[SourceTitle "playchess.com"]
[Source "ChessBase"]
[SourceQuality "1"]
[TimeControl "5400+30"]

1. Nf3 {[%emt 0:00:02]} Nf6 {[%emt 0:02:11]} 2. g3 {[%emt 0:00:12]} g6 {[%emt 0:00:39]} 3. Bg2 {[%emt 0:00:03]} Bg7 {[%emt 0:00:27]} 4. c4 {[%emt 0:00:27]} e6 {[%emt 0:03:51]} 5. O-O {[%emt 0:02:56]} O-O {[%emt 0:00:16]} 6. Nc3 {[%emt 0:00:47]} d5 {[%emt 0:01:13]} 7. d4 {[%emt 0:00:19]} c6 {[%emt 0:13:33]} 8. b3 {[%emt 0:05:45]} b6 {[%emt 0:07:06]} 9. Ba3 {[%emt 0:15:06]} Re8 {[%emt 0:00:43]} 10. Rc1 {[%emt 0:00:14]} Nbd7 {[%emt 0:02:57]} 11. Re1 {[%emt 0:17:23]} Bb7 {[%emt 0:26:00]} 12. e3 {[%emt 0:02:27]} Ne4 {[%emt 0:04:43]} 13. cxd5 {[%emt 0:06:30]} Nxc3 {[%emt 0:01:17]} 14. Rxc3 {[%emt 0:00:03]} exd5 {[%emt 0:01:25]} 15. Rc2 {[%emt 0:04:25]} a5 {[%emt 0:10:02]} 16. Rc1 {[%emt 0:04:26]} Rc8 {[%emt 0:09:29]} 17. Re2 {[%emt 0:00:38]} Bf8 {[%emt 0:03:22]} 18. Bxf8 {[%emt 0:00:40]} Kxf8 {[%emt 0:00:18]} 19. Rec2 {[%emt 0:00:34]} f5 {[%emt 0:03:49]} 20. h4 {[%emt 0:01:35]} Qf6 {[%emt 0:00:24]} 21. Ng5 {[%emt 0:01:36]} Qe7 {[%emt 0:04:48]} 22. Qf3 {[%emt 0:03:55]} Kg7 {[%emt 0:01:13]} 23. Nh3 {[%emt 0:31:57]} Nf6 {[%emt 0:00:33]} 24. Nf4 {[%emt 0:00:00]} a4 {[%emt 0:01:30]} 25. bxa4 {[%emt 0:00:00]} Ra8 {[%emt 0:00:37]} 26. Qd1 {[%emt 0:00:00]} Rxa4 {[%emt 0:00:27]} 27. Nxd5 {[%emt 0:00:00]} Nxd5 {[%emt 0:00:33]} 28. Bxd5 {[%emt 0:00:00]} Rd8 {[%emt 0:00:29]} 29. Bxc6 {[%emt 0:00:00]} Bxc6 {[%emt 0:00:06]} 30. Rxc6 {[%emt 0:00:00]} Rxa2 {[%emt 0:00:17]} 31. Qb3 {[%emt 0:00:00]} Rd2 {[%emt 0:01:02]} 32. Rc7 {[%emt 0:00:00]} Rd7 {[%emt 0:00:09]} 33. Rxd7 {[%emt 0:00:00]} Qxd7 {[%emt 0:00:01]} 34. Qxb6 {[%emt 0:00:00]} Qd5 {[%emt 0:00:35]} 35. Qc7+ {[%emt 0:00:00]} Kg8 {[%emt 0:00:41]} 36. Rb1 {[%emt 0:00:00]} Qf7 {[%emt 0:00:23]} 37. Qc8+ {[%emt 0:00:00]} Qf8 {[%emt 0:00:17]} 38. Qe6+ {[%emt 0:00:00]} Qf7 {[%emt 0:01:01]} 39. Qe5 {[%emt 0:00:00]} Qa7 {[%emt 0:00:57]} 40. Rb8+ {[%emt 0:00:00]} Kf7 {[%emt 0:00:06]} 41. Qd5+ {[%emt 0:00:00]} Kf6 {[%emt 0:00:19]} 42. Rf8+ {[%emt 0:00:00]} Kg7 {[%emt 0:00:04]} 43. Rg8+ {[%emt 0:00:00]} Kh6 {[%emt 0:00:14]} 44. Qd8 {[%emt 0:00:00]} Qa1+ {[%emt 0:00:58]} 45. Kg2 {[%emt 0:00:00]} Rxf2+ {[%emt 0:00:08]} 46. Kxf2 {[%emt 0:00:00]} Qb2+ {[%emt 0:00:09]} 47. Kf3 {[%emt 0:00:00]} Qb7+ {[%emt 0:00:04]} 48. d5 {[%emt 0:00:00]} Qxd5+ {[%emt 0:00:25]} 49. Qxd5 {[%emt 0:00:00]} Kh5 {[%emt 0:00:04]} 50. Qf7 {[%emt 0:00:00]} Kh6 {[%emt 0:00:11]} 51. Qg7+ {[%emt 0:00:00]} 1-0

[Event "3rd Matrix Cup 2024"]
[Site "New Delhi"]
[Date "2024.04.09"]
[Round "7.4"]
[White "Vyom Malhotra"]
[Black "Negi, Virender Singh"]
[Result "1/2-1/2"]
[ECO "B23"]
[WhiteElo "1825"]
[BlackElo "1920"]
[Annotator "RC"]
[PlyCount "59"]
[EventDate "2024.04.07"]
[EventType "swiss"]
[EventCountry "IND"]
[SourceTitle "playchess.com"]
[Source "ChessBase"]
[SourceQuality "1"]
[TimeControl "5400+30"]

1. e4 {[%emt 0:00:11]} c5 {[%emt 0:00:07]} 2. Nc3 {[%emt 0:00:12]} Nc6 {[%emt 0:00:14]} 3. f4 {[%emt 0:00:09]} g6 {[%emt 0:00:34]} 4. Nf3 {[%emt 0:00:14]} Bg7 {[%emt 0:00:14]} 5. a4 {[%emt 0:00:25]} d6 {[%emt 0:00:46]} 6. Bb5 {[%emt 0:00:15]} Nf6 {[%emt 0:02:26]} 7. d3 {[%emt 0:00:12]} O-O {[%emt 0:00:08]} 8. Bxc6 {[%emt 0:00:06]} bxc6 {[%emt 0:00:13]} 9. O-O {[%emt 0:00:10]} Rb8 {[%emt 0:01:06]} 10. Qe1 {[%emt 0:00:34]} Qc7 {[%emt 0:08:14]} 11. Qh4 {[%emt 0:00:52]} Rb4 {[%emt 0:07:01]} 12. Ne2 {[%emt 0:10:27]} c4 {[%emt 0:07:59]} 13. Ng3 {[%emt 0:10:46]} cxd3 {[%emt 0:01:54]} 14. cxd3 {[%emt 0:00:07]} Ba6 {[%emt 0:01:34]} 15. Ra3 {[%emt 0:01:20]} Qb6+ {[%emt 0:01:06]} 16. Kh1 {[%emt 0:00:19]} Rb3 {[%emt 0:00:09]} 17. Be3 {[%emt 0:22:05]} Qb7 {[%emt 0:01:40]} 18. f5 {[%emt 0:18:02]} Rxa3 {[%emt 0:02:00]} 19. bxa3 {[%emt 0:00:04]} Bxd3 {[%emt 0:00:17]} 20. Re1 {[%emt 0:00:31]} c5 {[%emt 0:04:10]} 21. e5 {[%emt 0:03:18]} Ne4 {[%emt 0:09:47]} 22. Nxe4 {[%emt 0:04:25]} Bxe4 {[%emt 0:07:29]} 23. Ng5 {[%emt 0:08:15]} Bxg2+ {[%emt 0:00:20]} 24. Kg1 {[%emt 0:00:05]} h6 {[%emt 0:00:08]} 25. fxg6 {[%emt 0:02:22]} Bh1 {[%emt 0:05:35]} 26. Qh3 {[%emt 0:02:31]} fxg6 {[%emt 0:00:47]} 27. Ne6 {[%emt 0:01:09]} Rf3 {[%emt 0:01:20]} 28. Qg4 {[%emt 0:01:37]} g5 {[%emt 0:02:03]} 29. Nxg7 {[%emt 0:05:16]} Kxg7 {[%emt 0:14:38]} 30. exd6 {[%emt 0:02:01]} 1/2-1/2